bitfinex-derivatives/quotes_SOLF0:USTF0_20250426
["timestamp","ask_amount","ask_price","bid_price","bid_amount"]
[1745689481004,14.82809658,149.21,149.17,8.12819658]
[1745689481919,14.82809658,149.21,149.17,14.82979658]
[1745689482512,8.7522,149.22,149.18,14.82929658]
[1745689482699,6.6995,149.22,149.18,14.82929658]
[1745689483305,6.6998,149.21,149.18,14.82929658]
[1745689484609,6.6998,149.21,149.18,8.12819658]
[1745689486012,6.6995,149.22,149.19,8.12819658]
[1745689487012,12.09849658,149.24,149.2,8.12819658]
[1745689487013,6.6989,149.23,149.2,8.12819658]
[1745689487708,10.6688,149.24,149.2,14.82809658]
[1745689487912,10.6688,149.24,149.21,8.12819658]
[1745689489311,10.6688,149.24,149.21,14.82789658]
[1745689489512,10.6688,149.24,149.21,8.12819658]
[1745689490512,10.6688,149.24,149.2,6.7]
[1745689490513,10.6688,149.24,149.2,14.82819658]
[1745689494613,8.7715,149.24,149.21,8.12819658]
[1745689495213,6.6981,149.25,149.22,8.12819658]
[1745689495414,6.6981,149.25,149.23,8.12819658]
[1745689497213,6.6981,149.25,149.22,8.12819658]
[1745689497617,6.6984,149.24,149.22,8.12819658]
[1745689502128,6.6982,149.25,149.22,8.12819658]
[1745689502829,30.2577,149.26,149.23,8.12819658]
[1745689503026,1.8988,149.27,149.25,8.12819658]
[1745689503324,8.5962,149.27,149.25,8.12819658]
[1745689503529,1.8988,149.27,149.25,8.12819658]
[1745689504028,8.5962,149.27,149.24,8.12819658]
[1745689504227,1.8988,149.27,149.24,8.12819658]
[1745689504934,8.5961,149.27,149.24,8.12819658]
[1745689507529,6.6976,149.26,149.24,8.12819658]
[1745689508925,6.698,149.25,149.24,8.12819658]
[1745689509129,8.12819658,149.26,149.21,8.12819658]
[1745689509332,8.12819658,149.26,149.22,8.12819658]
[1745689509526,1.8988,149.27,149.24,8.12819658]
[1745689509926,1.8988,149.27,149.25,8.12819658]
[1745689511330,25.5458,149.29,149.25,8.12819658]
[1745689511623,6.6969,149.28,149.25,8.12819658]
[1745689512430,6.6971,149.27,149.25,8.12819658]
[1745689512630,6.6971,149.27,149.24,8.12819658]
[1745689514632,6.6976,149.26,149.24,8.12819658]
[1745689514831,6.6976,149.26,149.23,8.12819658]
[1745689515032,8.12819658,149.27,149.22,8.12819658]
[1745689516128,6.6983,149.25,149.22,8.12819658]
[1745689516435,8.12819658,149.27,149.22,8.12819658]
[1745689516629,8.12819658,149.26,149.21,8.12819658]
[1745689516825,8.12819658,149.25,149.21,8.12819658]
[1745689517233,6.6985,149.24,149.21,8.12819658]
[1745689517532,12.21499658,149.28,149.23,8.12819658]
[1745689517729,12.21499658,149.28,149.24,8.12819658]
[1745689517932,6.6974,149.27,149.24,8.12819658]
[1745689518431,16.86379658,149.28,149.24,14.82649658]
[1745689518733,8.7356,149.28,149.25,8.12819658]
[1745689520136,10.16699658,149.28,149.24,8.12819658]
[1745689520432,10.16699658,149.28,149.23,8.12819658]
[1745689520628,10.16699658,149.28,149.22,6.6989]
[1745689520828,8.12819658,149.27,149.22,6.6989]
[1745689521026,8.12819658,149.27,149.23,8.12819658]
[1745689522236,6.6976,149.26,149.23,8.12819658]
[1745689523835,6.6976,149.26,149.24,8.12819658]
[1745689524436,6.6976,149.26,149.23,8.12819658]
[1745689524636,6.698,149.25,149.23,8.12819658]
[1745689527636,6.6984,149.24,149.23,8.12819658]
[1745689528133,6.6982,149.25,149.23,8.12819658]
[1745689530235,6.6977,149.26,149.23,8.12819658]
[1745689534137,6.6985,149.24,149.21,14.82779658]
[1745689534339,8.12819658,149.25,149.21,14.82779658]
[1745689535241,14.82639658,149.25,149.21,14.82779658]
[1745689535940,6.6982,149.25,149.21,14.82779658]
[1745689536443,6.6985,149.24,149.21,14.82779658]
[1745689536638,6.6985,149.24,149.22,8.12819658]
[1745689548953,6.6985,149.24,149.21,8.12819658]
[1745689551354,6.6985,149.24,149.22,8.12819658]
[1745689551554,6.6982,149.25,149.22,8.12819658]
[1745689551755,6.6982,149.25,149.2,23.56]
[1745689551756,4.0792,149.28,149.24,8.12819658]
[1745689552061,8.7358,149.28,149.25,8.12819658]
[1745689552357,2.0388,149.28,149.24,14.82639658]
[1745689553258,6.6971,149.27,149.24,14.82639658]
[1745689554160,6.6971,149.27,149.24,8.12819658]
[1745689555456,6.6971,149.27,149.23,14.82689658]
[1745689557460,6.6975,149.26,149.23,14.82689658]
[1745689560562,6.698,149.25,149.23,8.12819658]
[1745689560758,8.12819658,149.24,149.18,31.66819658]
[1745689561056,8.12819658,149.2,149.16,8.12819658]
[1745689561261,8.12819658,149.2,149.12,3.9214]
[1745689561262,8.12819658,149.18,149.15,23.54]
[1745689561765,14.82959658,149.18,149.15,30.2423]
[1745689561956,6.7014,149.18,149.15,30.2423]
[1745689562663,8.12819658,149.19,149.17,6.7015]
[1745689562961,8.12819658,149.22,149.18,8.12819658]
[1745689563163,6.7,149.21,149.17,14.82949658]
[1745689563463,6.7,149.21,149.17,8.12819658]
[1745689563964,14.82769658,149.22,149.18,6.7011]
[1745689564459,8.12819658,149.22,149.18,6.7011]
[1745689565464,8.12819658,149.2,149.18,6.7011]
[1745689565663,8.12819658,149.2,149.17,6.7014]
[1745689565863,14.82889658,149.2,149.16,8.12819658]
[1745689567264,14.82889658,149.2,149.17,6.7015]
[1745689567466,6.7007,149.2,149.17,6.7015]
[1745689568270,6.7008,149.19,149.16,14.82999658]
[1745689570269,14.82859658,149.2,149.16,14.82999658]
[1745689571467,14.82859658,149.2,149.17,6.7015]
[1745689571863,14.82859658,149.2,149.16,8.12819658]
[1745689572162,14.82859658,149.2,149.16,14.82999658]
[1745689572667,6.7008,149.19,149.16,14.82999658]
[1745689574169,14.82859658,149.2,149.17,6.7016]
[1745689574368,14.82859658,149.2,149.16,8.12819658]
[1745689574662,6.7007,149.19,149.16,14.82989658]
[1745689575068,8.12819658,149.19,149.15,31.66819658]
[1745689575270,8.12819658,149.18,149.15,23.54]
[1745689575468,8.12819658,149.18,149.15,30.242]
[1745689576363,14.82899658,149.19,149.16,6.702]
[1745689578870,6.7012,149.18,149.15,38.37059658]
[1745689579271,6.7012,149.18,149.15,30.2424]
[1745689584669,6.7017,149.17,149.15,23.54]
[1745689584874,8.12819658,149.17,149.15,23.54]
[1745689586276,6.702,149.16,149.15,23.54]
[1745689588077,14.82989658,149.17,149.15,23.54]
[1745689590179,14.82949658,149.18,149.15,23.54]
[1745689591276,6.7017,149.17,149.15,23.54]
[1745689592680,14.82949658,149.18,149.15,23.54]
[1745689592884,8.12819658,149.2,149.15,31.66819658]
[1745689593586,14.82849658,149.2,149.16,6.7017]
[1745689593791,6.7003,149.2,149.16,14.82989658]
[1745689593986,8.12819658,149.21,149.17,8.12819658]
[1745689594183,6.6999,149.21,149.18,6.7011]
[1745689596590,6.7003,149.2,149.17,14.82959658]
[1745689599888,6.7003,149.2,149.17,6.7014]
[1745689600089,8.12819658,149.19,149.15,23.54]
[1745689600691,6.7014,149.18,149.15,30.2422]
[1745689602893,6.7016,149.17,149.15,23.54]
[1745689603890,14.82949658,149.18,149.15,30.2424]
[1745689604592,6.7017,149.17,149.15,23.54]
[1745689606393,14.82949658,149.18,149.15,30.2424]
[1745689608193,14.82899658,149.19,149.16,6.7019]
[1745689609301,6.7008,149.19,149.16,6.7019]
[1745689612091,6.7012,149.18,149.15,38.37049658]
[1745689613887,6.7012,149.18,149.15,30.2423]
[1745689614095,8.12819658,149.17,149.15,23.54]
[1745689614396,8.12819658,149.16,149.12,31.66819658]
[1745689614797,14.83049658,149.16,149.13,6.703]
[1745689614993,6.7023,149.16,149.13,6.703]
[1745689615501,6.7018,149.17,149.14,6.7029]
[1745689616901,6.702,149.16,149.13,14.83139658]
[1745689617400,14.82989658,149.17,149.13,14.83139658]
[1745689620700,6.7022,149.16,149.13,14.83139658]
[1745689620901,8.12819658,149.15,149.12,23.54]
[1745689621100,8.12819658,149.14,149.12,23.54]
[1745689621300,6.7032,149.14,149.12,23.54]
[1745689621598,8.12819658,149.16,149.12,31.66819658]
[1745689621804,8.12819658,149.17,149.12,31.66819658]
[1745689622108,8.12819658,149.16,149.12,38.37169658]
[1745689622804,14.83039658,149.16,149.12,38.37169658]
[1745689623605,8.12819658,149.16,149.13,6.7033]
[1745689623799,6.7017,149.17,149.14,8.12819658]
[1745689623998,8.12819658,149.2,149.16,8.12819658]
[1745689624305,6.7005,149.2,149.17,8.12819658]
[1745689624803,6.7007,149.19,149.17,8.12819658]
[1745689625405,6.7011,149.18,149.17,8.12819658]
[1745689625603,6.7011,149.18,149.15,14.83049658]
[1745689631918,31.66819658,149.22,149.17,8.12819658]
[1745689632112,31.66819658,149.22,149.18,8.12819658]
[1745689632413,8.12819658,149.21,149.17,8.12819658]
[1745689633516,6.7005,149.2,149.17,8.12819658]
[1745689633716,8.12819658,149.21,149.17,8.12819658]
[1745689633917,8.12819658,149.2,149.16,38.36999658]
[1745689635216,6.7007,149.19,149.16,38.36999658]
[1745689636622,6.7007,149.19,149.17,8.12819658]
[1745689637516,6.7004,149.2,149.17,14.82959658]
[1745689638920,6.6999,149.21,149.18,6.701]
[1745689639221,14.15979658,149.24,149.2,8.12819658]
[1745689640220,6.6995,149.22,149.2,8.12819658]
[1745689641223,6.6998,149.21,149.2,8.12819658]
[1745689642427,6.6995,149.22,149.2,8.12819658]
[1745689648231,6.699,149.23,149.16,23.54]
[1745689648429,482.46,149.28,149.22,8.12819658]
[1745689648430,8.12819658,149.26,149.22,8.12819658]
[1745689648630,364.12819658,149.27,149.23,8.12819658]
[1745689648931,6.6979,149.26,149.24,8.12819658]
[1745689649132,23.54,149.28,149.25,8.12819658]
[1745689649326,6.6974,149.27,149.25,8.12819658]
[1745689649727,8.12819658,149.29,149.25,8.12819658]
[1745689649928,6.6969,149.28,149.25,8.12819658]
[1745689650132,8.12819658,149.29,149.25,8.12819658]
[1745689651132,6.6973,149.27,149.25,8.12819658]
[1745689654636,6.6975,149.26,149.25,8.12819658]
[1745689657037,6.6973,149.27,149.25,8.12819658]
[1745689658939,6.6975,149.26,149.25,8.12819658]
[1745689659131,6.6975,149.26,149.24,8.12819658]
[1745689663143,6.6975,149.26,149.25,8.12819658]
[1745689663944,6.6972,149.27,149.25,8.12819658]
[1745689664245,8.12819658,149.3,149.25,8.12819658]
[1745689664545,6.6974,149.27,149.25,8.12819658]
[1745689665046,6.698,149.25,149.24,8.12819658]
[1745689665248,8.12819658,149.26,149.21,14.82779658]
[1745689665447,8.12819658,149.27,149.23,8.12819658]
[1745689665652,6.6978,149.26,149.23,8.12819658]
[1745689669152,6.6972,149.27,149.24,8.12819658]
[1745689669448,6.6972,149.27,149.25,8.12819658]
[1745689669648,6.6972,149.27,149.24,8.12819658]
[1745689671850,8.12819658,149.28,149.24,8.12819658]
[1745689672750,6.6978,149.26,149.24,8.12819658]
[1745689673147,8.12819658,149.26,149.2,23.54]
[1745689673450,6.6994,149.22,149.2,23.54]
[1745689673650,6.6994,149.22,149.2,31.66819658]
[1745689674151,6.699,149.23,149.2,31.66819658]
[1745689674352,1.9648,149.26,149.21,8.12819658]
[1745689674545,1.9648,149.26,149.22,8.12819658]
[1745689674853,6.6983,149.25,149.22,8.12819658]
[1745689675350,6.6983,149.25,149.22,14.82749658]
[1745689675847,6.6983,149.25,149.22,8.12819658]
[1745689679653,6.6986,149.24,149.22,8.12819658]
[1745689682752,6.6986,149.24,149.21,8.12819658]
[1745689683357,6.6986,149.24,149.21,14.82789658]
[1745689684054,6.6986,149.24,149.21,8.12819658]
[1745689685562,8.12819658,149.25,149.2,31.66819658]
[1745689685750,10.14139658,149.25,149.2,23.54]
[1745689685954,8.12819658,149.23,149.2,23.54]
[1745689686150,8.12819658,149.22,149.2,23.54]
[1745689686558,6.6998,149.21,149.2,23.54]
[1745689686758,6.6998,149.21,149.18,8.12819658]
[1745689688261,8.12819658,149.21,149.17,31.64819658]
[1745689688455,8.12819658,149.21,149.17,23.52]
[1745689688958,6.7005,149.2,149.17,23.52]
[1745689690560,6.7005,149.2,149.18,8.12819658]
[1745689694262,6.7005,149.2,149.17,38.34959658]
[1745689697871,6.7007,149.19,149.17,23.52]
[1745689698068,8.12819658,149.19,149.17,23.52]
[1745689698268,8.12819658,149.18,149.14,31.66819658]
[1745689698470,8.12819658,149.18,149.14,23.54]
[1745689698764,8.12819658,149.17,149.14,23.54]
[1745689698971,6.7023,149.16,149.14,23.54]
[1745689700471,8.12819658,149.16,149.12,8.12819658]
[1745689700674,8.12819658,149.16,149.11,31.66819658]
[1745689700870,8.12819658,149.16,149.12,8.12819658]
[1745689702171,6.7023,149.16,149.12,8.12819658]
[1745689702391,8.12819658,149.18,149.14,8.12819658]
[1745689704074,8.12819658,149.18,149.14,14.83089658]
[1745689704466,31.66819658,149.19,149.15,14.83039658]
[1745689704671,10.22769658,149.2,149.16,8.12819658]
[1745689704967,8.12819658,149.19,149.15,14.83039658]
[1745689706278,6.7011,149.18,149.15,14.83039658]
[1745689708479,8.12819658,149.19,149.15,14.83039658]
[1745689708480,14.82899658,149.19,149.15,14.83039658]
[1745689708681,6.7008,149.19,149.15,14.83039658]
[1745689709284,6.7008,149.19,149.16,8.12819658]
[1745689710983,6.7011,149.18,149.16,8.12819658]
[1745689712381,14.82899658,149.19,149.16,8.12819658]
[1745689714084,6.7013,149.18,149.16,8.12819658]
[1745689717182,6.7013,149.18,149.15,6.7023]
[1745689717383,6.7013,149.18,149.15,8.12819658]
[1745689719288,6.7013,149.18,149.16,8.12819658]
[1745689721486,6.7008,149.19,149.16,8.12819658]
[1745689722793,6.7012,149.18,149.16,8.12819658]
[1745689723192,10.22769658,149.2,149.16,14.83019658]
[1745689723993,6.7009,149.19,149.16,14.83019658]
[1745689724191,10.22769658,149.2,149.17,6.7016]
[1745689724491,23.54,149.22,149.18,8.12819658]
[1745689724692,8.12819658,149.23,149.18,8.12819658]
[1745689725293,6.6999,149.21,149.18,8.12819658]
[1745689728198,8.12819658,149.23,149.18,8.12819658]
[1745689728199,6.7003,149.2,149.18,8.12819658]
[1745689729693,6.7003,149.2,149.17,14.82969658]
[1745689730801,6.7003,149.2,149.17,8.12819658]
[1745689734502,6.7003,149.2,149.17,14.82959658]
[1745689734703,6.7007,149.19,149.17,8.12819658]
[1745689735702,6.7004,149.2,149.17,8.12819658]
[1745689737302,6.7004,149.2,149.17,14.82969658]
[1745689740003,6.7,149.21,149.17,14.82969658]
[1745689743508,6.7007,149.19,149.16,14.82999658]
[1745689743697,8.12819658,149.2,149.16,8.12819658]
[1745689744904,8.12819658,149.21,149.17,6.7013]
[1745689745104,8.12819658,149.21,149.17,8.12819658]
[1745689746402,14.82809658,149.21,149.18,6.7009]
[1745689749306,6.6999,149.21,149.18,6.7009]
[1745689753906,8.12819658,149.22,149.17,8.12819658]
[1745689754209,6.6989,149.23,149.2,6.7002]
[1745689754510,6.6989,149.23,149.19,14.82879658]
[1745689755408,6.6994,149.22,149.19,14.82879658]
[1745689757911,6.6994,149.22,149.19,8.12819658]
[1745689758210,6.6994,149.22,149.18,38.34919658]
[1745689761213,6.6994,149.22,149.19,6.7005]
[1745689761415,14.82719658,149.23,149.19,6.7005]
[1745689764614,6.6994,149.22,149.19,6.7005]
[1745689765717,6.6998,149.21,149.18,38.34919658]
[1745689766215,6.6995,149.22,149.18,38.34919658]
[1745689766713,8.12819658,149.23,149.18,38.34919658]
[1745689767615,6.7003,149.2,149.18,31.64819658]
[1745689767818,6.7003,149.2,149.18,23.52]
[1745689768113,6.7003,149.2,149.17,6.7014]
[1745689768314,6.7003,149.2,149.17,14.82959658]
[1745689768610,8.12819658,149.23,149.19,8.12819658]
[1745689768805,14.25009658,149.24,149.19,8.12819658]
[1745689769114,6.6992,149.23,149.19,14.82859658]
[1745689769715,6.6993,149.22,149.19,14.82859658]
[1745689770511,6.6993,149.22,149.2,8.12819658]
[1745689770712,1.96,149.24,149.21,8.12819658]
[1745689770914,8.12819658,149.27,149.23,8.12819658]
[1745689771218,6.6978,149.26,149.23,8.12819658]
[1745689772317,6.6978,149.26,149.23,14.82709658]
[1745689773913,6.6978,149.26,149.23,8.12819658]
[1745689774820,6.698,149.25,149.23,8.12819658]
[1745689776420,8.12819658,149.24,149.19,31.64819658]
[1745689776719,8.12819658,149.23,149.19,31.64819658]
[1745689777215,6.6994,149.22,149.19,38.34869658]
[1745689777425,8.12819658,149.23,149.19,31.64819658]
[1745689778019,6.6996,149.22,149.19,23.52]
[1745689778824,8.12819658,149.22,149.19,23.52]
[1745689779126,8.12819658,149.21,149.17,8.12819658]
[1745689779326,8.12819658,149.21,149.16,31.64819658]
[1745689779831,6.7005,149.2,149.16,38.34989658]
[1745689780331,14.82809658,149.21,149.17,6.7014]
[1745689780625,3.9903,149.23,149.18,8.12819658]
[1745689780626,12.11849658,149.23,149.18,8.12819658]
[1745689780827,12.11849658,149.23,149.19,8.12819658]
[1745689781031,14.82779658,149.22,149.18,14.82889658]
[1745689782026,6.6998,149.21,149.18,14.82889658]
[1745689782231,6.6998,149.21,149.17,14.82969658]
[1745689782631,6.6998,149.21,149.17,8.12819658]
[1745689782835,6.6998,149.21,149.18,6.7011]
[1745689784330,6.6998,149.21,149.18,14.82929658]
[1745689786435,6.6998,149.21,149.17,14.82959658]
[1745689791335,6.6998,149.21,149.18,6.7011]
[1745689791838,6.6998,149.21,149.18,14.82929658]
[1745689793139,6.7003,149.2,149.17,14.82969658]
[1745689793331,6.7003,149.2,149.17,38.34969658]
[1745689793535,8.12819658,149.22,149.17,31.64819658]
[1745689793733,8.12819658,149.21,149.17,23.52]
[1745689794042,8.12819658,149.2,149.17,23.52]
[1745689795242,6.7009,149.19,149.17,23.52]
[1745689795742,6.7009,149.19,149.16,8.12819658]
[1745689796041,6.7012,149.18,149.15,14.83049658]
[1745689797243,14.82899658,149.19,149.15,14.83049658]
[1745689797443,6.7008,149.19,149.16,8.12819658]
[1745689797646,6.7003,149.2,149.17,8.12819658]
[1745689797938,8.12819658,149.22,149.18,8.12819658]
[1745689799046,6.7,149.21,149.18,8.12819658]
[1745689799650,6.7003,149.2,149.18,8.12819658]
[1745689801549,6.7003,149.2,149.17,14.82949658]
[1745689802253,6.7003,149.2,149.17,8.12819658]
[1745689802550,6.7007,149.19,149.17,8.12819658]
[1745689803253,6.7007,149.19,149.16,38.34999658]
[1745689805346,6.7007,149.19,149.17,14.82969658]
[1745689805546,6.7004,149.2,149.17,14.82969658]
[1745689806045,8.12819658,149.22,149.17,14.82969658]
[1745689806650,6.7005,149.2,149.17,14.82969658]
[1745689807150,6.6997,149.22,149.18,14.82909658]
[1745689807350,12.11849658,149.23,149.19,8.12819658]
[1745689807851,6.7,149.21,149.19,8.12819658]
[1745689809449,6.6995,149.22,149.19,8.12819658]
[1745689809751,6.6995,149.22,149.19,14.82879658]
[1745689811453,31.64819658,149.24,149.21,8.12819658]
[1745689811650,8.12819658,149.26,149.22,8.12819658]
[1745689812257,33.71809658,149.27,149.22,8.12819658]
[1745689812656,6.6985,149.24,149.22,8.12819658]
[1745689813657,6.698,149.25,149.23,8.12819658]
[1745689815059,6.6977,149.26,149.23,8.12819658]
[1745689815760,6.698,149.25,149.23,8.12819658]
[1745689817061,6.6984,149.24,149.22,8.12819658]
[1745689817358,6.6984,149.24,149.21,8.12819658]
[1745689819458,8.12819658,149.25,149.2,30.2201]
[1745689819661,8.12819658,149.24,149.2,23.52]
[1745689820261,6.699,149.23,149.2,23.52]
[1745689820962,6.699,149.23,149.2,31.64819658]
[1745689821668,6.6995,149.22,149.2,23.52]
[1745689821866,8.12819658,149.21,149.17,31.64819658]
[1745689822061,8.12819658,149.2,149.17,23.52]
[1745689822260,6.7009,149.19,149.17,23.52]
[1745689822866,6.7011,149.18,149.17,23.52]
[1745689823063,6.7011,149.18,149.15,14.83039658]
[1745689824156,6.7011,149.18,149.15,8.12819658]
[1745689824360,14.82899658,149.19,149.16,8.12819658]
[1745689824561,6.7008,149.19,149.16,8.12819658]
[1745689825461,6.7011,149.18,149.16,8.12819658]
[1745689826566,6.7011,149.18,149.15,6.7024]
[1745689826866,6.7011,149.18,149.16,8.12819658]
[1745689829369,6.7008,149.19,149.16,8.12819658]
[1745689829568,6.7008,149.19,149.16,14.83009658]
[1745689829868,6.7008,149.19,149.16,8.12819658]
[1745689831067,6.7008,149.19,149.16,14.83009658]
[1745689831771,6.7012,149.18,149.16,8.12819658]
[1745689833371,6.7016,149.17,149.16,8.12819658]
[1745689833570,8.12819658,149.19,149.15,8.12819658]
[1745689834373,6.7012,149.18,149.15,8.12819658]
[1745689837575,6.7016,149.17,149.15,8.12819658]
[1745689839676,6.7016,149.17,149.15,14.83069658]
[1745689839978,6.7013,149.18,149.15,14.83069658]
[1745689854582,6.7009,149.19,149.16,6.7019]
[1745689854879,14.82909658,149.19,149.16,6.7019]
[1745689855088,8.12819658,149.19,149.17,6.7015]
[1745689855387,6.7004,149.2,149.17,14.82969658]
[1745689861287,1.9703,149.21,149.17,8.12819658]
[1745689861489,8.12819658,149.23,149.19,8.12819658]
[1745689861682,8.12819658,149.24,149.19,8.12819658]
[1745689861991,8.12819658,149.22,149.18,14.82909658]
[1745689862989,8.12819658,149.21,149.17,8.12819658]
[1745689863187,8.12819658,149.19,149.15,8.12819658]
[1745689864291,6.7014,149.18,149.15,14.83059658]
[1745689866801,6.7016,149.17,149.14,31.64819658]
[1745689868300,6.7016,149.17,149.14,38.35099658]
[1745689870801,12.00859658,149.21,149.16,8.12819658]
[1745689871002,12.00859658,149.21,149.17,8.12819658]
[1745689871602,6.7008,149.19,149.17,8.12819658]
[1745689871900,8.12819658,149.2,149.15,8.12819658]
[1745689872095,14.82909658,149.19,149.15,8.12819658]
[1745689872300,6.7009,149.19,149.15,8.12819658]
[1745689874502,6.7009,149.19,149.16,8.12819658]
[1745689874802,6.7009,149.19,149.14,23.52]
[1745689875003,6.7012,149.18,149.15,8.12819658]
[1745689875705,6.7012,149.18,149.15,14.83029658]
[1745689880004,14.82899658,149.19,149.16,6.702]
[1745689880997,12.00859658,149.21,149.17,14.82969658]
[1745689881201,1.8996,149.21,149.18,8.12819658]
[1745689881505,6.6991,149.23,149.2,8.12819658]
[1745689881707,6.6991,149.23,149.19,6.7004]
[1745689881708,6.6991,149.23,149.19,14.82859658]
[1745689881922,8.12819658,149.24,149.19,14.82859658]
[1745689883308,8.12819658,149.23,149.19,8.12819658]
[1745689883502,8.12819658,149.23,149.18,14.82909658]
[1745689883704,8.12819658,149.22,149.18,14.82909658]
[1745689884006,14.82789658,149.22,149.18,14.82909658]
[1745689885204,6.6998,149.21,149.18,14.82909658]
[1745689885902,8.12819658,149.23,149.18,8.12819658]
[1745689886105,8.12819658,149.23,149.19,8.12819658]
[1745689886708,6.6996,149.22,149.19,8.12819658]
[1745689887308,6.6998,149.21,149.19,8.12819658]
[1745689891216,6.6998,149.21,149.18,8.12819658]
[1745689895217,8.12819658,149.21,149.17,8.12819658]
[1745689896015,8.12819658,149.19,149.15,8.12819658]
[1745689896314,6.7011,149.18,149.15,8.12819658]
[1745689897313,6.7008,149.19,149.16,8.12819658]
[1745689899819,6.7008,149.19,149.15,6.7025]
[1745689900115,6.7008,149.19,149.16,8.12819658]
[1745689902531,6.7008,149.19,149.16,14.83009658]
[1745689903920,6.7008,149.19,149.15,14.83059658]
[1745689906720,14.82859658,149.2,149.16,6.7019]
[1745689906928,6.7004,149.2,149.17,8.12819658]
[1745689908427,8.6303,149.21,149.17,14.82949658]
[1745689908725,31.64819658,149.23,149.19,8.12819658]
[1745689909024,8.12819658,149.23,149.19,8.12819658]
[1745689910023,6.6996,149.22,149.19,8.12819658]
[1745689910224,6.6996,149.22,149.18,38.34909658]
[1745689913025,6.6998,149.21,149.18,38.34909658]
[1745689916229,6.6994,149.22,149.18,38.34909658]
[1745689916425,6.6994,149.22,149.19,8.12819658]
[1745689916626,8.12819658,149.24,149.2,8.12819658]
[1745689917230,6.6992,149.23,149.21,8.12819658]
[1745689920131,6.6986,149.24,149.21,8.12819658]
[1745689921526,6.6981,149.25,149.18,23.52]
[1745689921725,1.9804,149.26,149.23,8.12819658]
[1745689922529,8.678,149.26,149.23,8.12819658]
[1745689924636,6.6981,149.25,149.23,8.12819658]
[1745689924835,10.10859658,149.26,149.23,8.12819658]
[1745689926034,10.10859658,149.26,149.22,31.64819658]
[1745689927235,6.6984,149.24,149.22,31.64819658]
[1745689932738,6.6982,149.25,149.22,31.64819658]
[1745689941137,6.6982,149.25,149.23,8.12819658]
[1745689945944,6.6982,149.25,149.22,31.64819658]
[1745689946743,6.6985,149.24,149.22,31.64819658]
[1745689947348,6.6989,149.23,149.22,23.52]
[1745689947550,8.12819658,149.23,149.19,31.62819658]
[1745689948247,8.12819658,149.24,149.19,38.32859658]
[1745689948747,6.6991,149.23,149.2,6.7002]
[1745689949050,6.6991,149.23,149.19,31.62819658]
[1745689950249,6.6991,149.23,149.19,38.32859658]
[1745689952254,6.6994,149.22,149.19,38.32859658]
[1745689952955,6.7001,149.21,149.19,31.62819658]
[1745689954256,6.6995,149.22,149.19,38.32879658]
[1745689956257,6.6995,149.22,149.2,8.12819658]
[1745689956560,6.6991,149.23,149.2,14.82839658]
[1745689956752,1.9804,149.26,149.22,8.12819658]
[1745689957057,31.64819658,149.29,149.25,8.12819658]
[1745689957257,6.6969,149.28,149.25,14.82599658]
[1745689957655,6.6969,149.28,149.25,8.12819658]
[1745689957852,8.12819658,149.29,149.25,8.12819658]
[1745689958761,6.6967,149.28,149.25,8.12819658]
[1745689959855,6.6967,149.28,149.24,6.6982]
[1745689960061,8.12819658,149.27,149.23,38.32689658]
[1745689960561,14.82559658,149.27,149.23,38.32689658]
[1745689960762,8.12819658,149.27,149.23,31.62819658]
[1745689961360,6.6978,149.26,149.23,31.62819658]
[1745689962864,6.6978,149.26,149.23,38.32699658]
[1745689963865,6.6978,149.26,149.23,31.62819658]
[1745689964163,6.698,149.25,149.23,31.62819658]
[1745689964363,8.12819658,149.27,149.23,31.62819658]
[1745689964863,6.6978,149.26,149.23,31.62819658]
[1745689965163,8.12819658,149.27,149.23,31.62819658]
[1745689965559,6.6982,149.25,149.23,31.62819658]
[1745689965858,8.12819658,149.26,149.23,23.5]
[1745689966067,8.12819658,149.25,149.23,23.5]
[1745689966266,14.82709658,149.24,149.2,38.32829658]
[1745689966463,8.12819658,149.24,149.2,38.32829658]
[1745689966663,8.12819658,149.25,149.2,38.32829658]
[1745689967464,6.6986,149.24,149.2,38.32829658]
[1745689968364,6.6986,149.24,149.21,8.12819658]
[1745689969566,6.6986,149.24,149.21,14.82789658]
[1745689970969,6.6977,149.26,149.23,14.82709658]
[1745689971164,8.12819658,149.26,149.22,8.12819658]
[1745689971364,8.12819658,149.26,149.21,8.12819658]
[1745689971658,8.12819658,149.26,149.21,14.82769658]
[1745689972167,6.6985,149.24,149.21,14.82769658]